Workbook

Sheet Input
D3: Ferramenta de Planejamento Financeiro
C8: Situação Atual
C10: Estado Civil | D10: Casado(a) | E10: =IF(D10="Solteiro(a)","Mulher/Homem","Idade Mulher") -> Idade Mulher | F10: =IF(D10="Solteiro(a)","","Idade Homem") -> Idade Homem | G10: 1 | H10: 2 | I10: 3 | J10: 4 | K10: 5 | L10: 6 | M10: 6 | N10: 7 | O10: 8 | P10: 9
D11: Idade:
C14: Filhos Hoje | F14: =IF($D$14>0,"1o Filho","") ->  | G14: =IF($D$14>G10,"2o Filho","") ->  | H14: =IF($D$14>H10,"3o Filho","") ->  | I14: =IF($D$14>J10,"5o Filho","") ->  | J14: =IF($D$14>K10,"6o Filho","") ->  | K14: =IF($D$14>L10,"7o Filho","") -> 
E15: =IF($D$14>0,"Idade:","") -> 
H16: ,
C17: =IF(D14>0,"Valor Pago de Pensão Alimentícia","") -> 
C19: Renda Familiar Mensal | D19: =+E20+E21+E23+F20+F21+F23+E22+F22 -> 0 | E19: =IF(D10="Solteiro(a)","Mulher/Homem","Renda Mulher") -> Renda Mulher | F19: =IF(D10="Solteiro(a)","","Renda Homem") -> Renda Homem
D20: Salario(s) Líquido na conta corrente (média mensal incluindo bonus, etc)
D21: Aluguel de Imóvel(s)
D22: Pensão Recebida
D23: Outros
C25: Disponibilidade (dinheiro e aplicações em conta)
C27: Patrimônio (excluindo disponibilidades) a valor de mercado hoje aproximadamente | D27: =SUM(E28:F34) -> 0 | E27: =IF(D10="Solteiro(a)","Mulher/Homem","Patrimônio Mulher") -> Patrimônio Mulher | F27: =IF(D10="Solteiro(a)","","Patrimônio Homem") -> Patrimônio Homem
C28: Imóvel Residencial | D28: =SUM(E28:F28) -> 0
C29: Escritório Comercial | D29: =SUM(E29:F29) -> 0
C30: Galpão | D30: 0
C31: Fazenda | D31: 0
C32: Outros Imóveis | D32: 0
C33: Automóvel | D33: 0
C34: Outros Bens | D34: 0
C36: Dívida (financiamento/emprestimos) | D36: =SUM(E37:F38) -> 0 | E36: =IF(D10="Solteiro(a)","Mulher/Homem","Dívida Mulher") -> Dívida Mulher | F36: =IF(D10="Solteiro(a)","","Dívida Homem") -> Dívida Homem
C37: Financiamento | D37: =SUM(E37:F37) -> 0
C38: Emprestimos familiares | D38: =SUM(E38:F38) -> 0
C42: Planejamento Familiar
E43: =IF(D10="Casado(a)","Mulher","Mulher/Homem") -> Mulher | F43: =IF(D10="Casado(a)","Homem","") -> Homem
C44: Quandos anos mais deseja trabalhar?
C46: Quantos filhos pretende ter? | G46: Inserir um "X" nos itens desejados abaixo
E48: Valores Considerados | F48: PADRÃO SUPERIOR (R$) | H48: MÉDIA (R$) | J48: PADRÃO INFERIOR (R$)
C49: Condomínio / Iptu | D49: =IF($E$11<>"",1,0) -> 0 | E49: =IF(G49="x",F49,IF(I49="x",H49,IF(K49="x",J49,0))) -> 0 | F49: 2500 | H49: 1500 | J49: 1000
C50: Água | D50: =IF($E$11<>"",1,0) -> 0 | E50: 0 | F50: 100 | H50: 30 | J50: 15
C51: Energia Elétrica | D51: 0 | E51: 0 | F51: 450 | H51: 220 | J51: 110
C52: TV / Internet Cabo | D52: 0 | E52: 0 | F52: 450 | H52: 250 | J52: 80
C53: Aluguel | D53: 0 | E53: 0 | F53: 6000 | H53: 2500 | J53: 1100
C54: Reposição de Automóvel (provisão mensal) | D54: =ROUNDUP(D33/50000,0) -> 0 | E54: =IF(G54="x",F54,IF(I54="x",H54,IF(K54="x",J54,0))) -> 0 | F54: 0 | H54: 0 | J54: 0
C55: Combustível | D55: =IF(ROUNDUP(D33/50000,0)=0,1,ROUNDUP(D33/50000,0)) -> 1 | E55: =IF(G55="x",F55,IF(I55="x",H55,IF(K55="x",J55,0))) -> 0 | F55: 480 | H55: 240 | J55: 120
C56: Compra de bens não duráveis (celular, geladeira, TV, sofá...) | D56: =((IF($D$10="Casado(a)",2,IF($E$11<>"",1,0)))) -> 2 | E56: =IF(G56="x",F56,IF(I56="x",H56,IF(K56="x",J56,0))) -> 0 | F56: 333.3333333 | H56: 250 | J56: 83.33333333
C57: Academia de Ginastica / Esporte / Pilates / Fisioterapia | D57: 2 | E57: =IF(G57="x",F57,IF(I57="x",H57,IF(K57="x",J57,0))) -> 0 | F57: 1000 | H57: 400 | J57: 200
C58: Terapia / Meditação | D58: 2 | E58: 0 | F58: 1100 | H58: 792 | J58: 360
C59: Saúde (remédio, consultas) | D59: 2 | E59: 0 | F59: 600 | H59: 200 | J59: 100
C60: Dentista | D60: 2 | E60: 0 | F60: 100 | H60: 50 | J60: 20
C61: Jantares com Amigos / Família | D61: 2 | E61: 0 | F61: 800 | H61: 540 | J61: 200
C62: Celular | D62: 2 | E62: 0 | F62: 300 | H62: 140 | J62: 50
C63: Presentes para ocasiões especiais (Parentes, Amigos) | D63: 2 | E63: 0 | F63: 300 | H63: 150 | J63: 100
C64: Empregada/Faxineira | D64: 0 | E64: =IF(G64="x",F64,IF(I64="x",H64,IF(K64="x",J64,0))) -> 0 | F64: 3872 | H64: 1056 | J64: 660
C65: Escola de Linguas (Adulto) | D65: 2 | E65: 0 | F65: 1584 | H65: 1056 | J65: 880
C66: Pós-Graduação / MBA (considerando o casal) | D66: 2 | E66: 0 | F66: 2500 | H66: 1500 | J66: 500
C67: Cinema & Pipoca per capta da família | D67: =($D$46+(IF($D$10="Casado(a)",2,IF($E$11<>"",1,0))+IF(COUNTA(D14)-COUNTA(D17)=0,0,D14))) -> 2 | E67: 0 | F67: 75 | H67: 40 | J67: 25
C68: Mensalidade Clube | D68: =($D$46+COUNTA($E$11:$F$11)+IF(COUNTA($D$14)-COUNTA($D$17)>0,$D$14,0)) -> 0 | E68: 0 | F68: 300 | H68: 120 | J68: 0
C69: Viagem de Férias | D69: =($D$46+COUNTA($E$11:$F$11)+IF(COUNTA($D$14)-COUNTA($D$17)>0,$D$14,0)) -> 0 | E69: 0 | F69: 666.6666667 | H69: 500 | J69: 166.6666667
C70: Farmácia per capta da família | D70: =($D$46+(IF($D$10="Casado(a)",2,IF($E$11<>"",1,0))+IF(COUNTA(D14)-COUNTA(D17)=0,0,D14))) -> 2 | E70: 0 | F70: 350 | H70: 200 | J70: 100
C71: Roupa per capta da família | D71: =($D$46+(IF($D$10="Casado(a)",2,IF($E$11<>"",1,0))+IF(COUNTA(D14)-COUNTA(D17)=0,0,D14))) -> 2 | E71: 0 | F71: 120 | H71: 60 | J71: 30
C72: Escola de Linguas (Infantil) | D72: =($D$46+IF(COUNTA($D$14)-COUNTA($D$17)>0,$D$14,0)) -> 0 | E72: 0 | F72: 1584 | H72: 1056 | J72: 880
C73: Baba | D73: =IF((D46+COUNTIF(D14,1)+COUNTIF(D14,2)+COUNTIF(D14,3)+COUNTIF(D14,4)+COUNTIF(D14,5)+COUNTIF(D14,6)-COUNTA(D17))>0,1,0) -> 0 | E73: 0 | F73: 4800 | H73: 3840 | J73: 1152
C74: Escola | D74: =($D$46+IF(COUNTA($D$14)-COUNTA($D$17)>0,$D$14,0)) -> 0 | E74: =IF(G74="x",F74,IF(I74="x",H74,IF(K74="x",J74,0))) -> 0 | F74: 3500 | H74: 2000 | J74: 1000
C75: Motorista | D75: =IF((D46+COUNTIF(D14,1)+COUNTIF(D14,2)+COUNTIF(D14,3)+COUNTIF(D14,4)+COUNTIF(D14,5)+COUNTIF(D14,6)-COUNTA(D17))>0,1,0) -> 0 | E75: 0 | F75: 5500 | H75: 3500 | J75: 3500
C76: Transporte Escolar | D76: 0 | E76: 0 | F76: 580 | H76: 226 | J76: 150
C77: Material Escolar (mensalizado) | D77: 0 | E77: 0 | F77: 50 | H77: 40 | J77: 20
C78: Livros de Escola / Revistas / Etc (mês) | D78: 0 | E78: 0 | F78: 100 | H78: 50 | J78: 20
C79: Uniforme Escolar (mensalizado) | D79: 0 | E79: 0 | F79: 37.5 | H79: 16.66666667 | J79: 10
C80: Atividades fora da Escola (passeios) por pessoa mês | D80: 0 | E80: 0 | F80: 100 | H80: 66.66666667 | J80: 25
C81: Alimentação (Supermercado, lanches escola/esporte, etc) | D81: =($D$46+(IF($D$10="Casado(a)",2,IF($E$11<>"",1,0))+IF(COUNTA(D14)-COUNTA(D17)=0,0,D14))) -> 2 | E81: 0 | F81: 1500 | H81: 1000 | J81: 650
C82: Outros (preencher) | D82: =($D$46+(IF($D$10="Casado(a)",2,IF($E$11<>"",1,0))+IF(COUNTA(D13)-COUNTA(D16)=0,0,D13))) -> 2 | E82: 0
C83: Outros (preencher) | D83: 2 | E83: 0
C84: Outros (preencher) | D84: 2 | E84: 0
C85: Outros (preencher) | D85: =($D$46+(IF($D$10="Casado(a)",2,IF($E$11<>"",1,0))+IF(COUNTA(D16)-COUNTA(D19)=0,0,D16))) -> 2 | E85: 0
C86: Total Mensal Esperado | E86: =SUMPRODUCT(E49:E85,D49:D85) -> 0
C90: =+D20 -> Salario(s) Líquido na conta corrente (média mensal incluindo bonus, etc)
C92: Renda Atual x Despesa Projetada
C93: Renda | D93: =+D19 -> 0
C94: Despesa Projetada | D94: =-(E86+D17) -> 0
C95: Saldo Final (mês) | D95: =SUM(D93:D94) -> 0
C98: Estime uma Renda Média para Estes Anos Produtivos tomando por base a renda atual | D98: Mulher | E98: Homem
C99: Salario(s) Líquido na conta corrente | D99: =E20 -> 0 | E99: =F20 -> 0
C100: Aluguel de Imóvel(s) | D100: =E21 -> 0 | E100: 0
C101: Pensão Recebida | D101: =E22 -> 0 | E101: 0
C102: Outros | D102: =E23 -> 0 | E102: 0
C103: Total | D103: =SUM(D99:D102)*12 -> 0 | E103: =SUM(E99:E102)*12 -> 0
I104: Mulher | J104: Homem
C105: Reserva Projetada para o fim dos Anos Produtivos | G105: Expectativa de Vida: | I105: 80 | J105: 80
C106: Renda | D106: =D103*E44+E103*F44 -> 0 | G106: Anos de aposentadoria | I106: =+I105-E11-E44 -> 80 | J106: =+J105-F11-F44 -> 80
C108: Pensão Alimentícia | D108: =(IF(F14<>"",-D17/D14*12*(21-F15),0)-IF(G14<>"",D17/D14*12*(21-G15),0)-IF(H14<>"",D17/D14*12*(21-H15),0)-IF(I14<>"",D17/D14*12*(21-I15),0)-IF(J14<>"",D17/D14*12*(21-J15),0)-IF(K14<>"",D17/D14*12*(21-K15),0)) -> 0
C109: Despesas projetadas | D109: =-E86*F44*12 -> 0 | G109: Disponibilidade Mensal (aposentadoria) | I109: =+D114/SUM(I106:J106)/12 -> 0 | J109: =+D114/SUM(I106:J106)/12 -> 0
C110: Reserva de Caixa (R$) Acumulado | D110: =SUM(D106:D109) -> 0
G111: não considera INSS
C112: Disponibilidade Financeira | D112: =D25 -> 0 | G112: Reserva de Caixa Após expectativa de Vida | I112: =+I106*I109*12+J106*J109*12-D114 -> 0
C114: Reserva de Caixa (R$) Após disponibilidade financeira | D114: =+D110+D112 -> 0

Sheet backup (hidden)
D3: Ferramenta de Planejamento Financeiro
C8: Situação Atual
C10: Estado Civil | D10: Casado(a) | E10: =IF(D10="Solteiro(a)","Mulher/Homem","Idade Mulher") -> Idade Mulher | F10: =IF(D10="Solteiro(a)","","Idade Homem") -> Idade Homem | G10: 1 | H10: 2 | I10: 3 | J10: 4 | K10: 5 | L10: 6 | M10: 6 | N10: 7 | O10: 8 | P10: 9
D11: Idade: | E11: 35 | F11: 40
C14: Filhos Hoje | D14: 3 | F14: =IF($D$14>0,"1o Filho","") -> 1o Filho | G14: =IF($D$14>G10,"2o Filho","") -> 2o Filho | H14: =IF($D$14>H10,"3o Filho","") -> 3o Filho | I14: =IF($D$14>J10,"5o Filho","") ->  | J14: =IF($D$14>K10,"6o Filho","") ->  | K14: =IF($D$14>L10,"7o Filho","") -> 
E15: =IF($D$14>0,"Idade:","") -> Idade: | F15: 11 | G15: 8 | H15: 8
H16: ,
C17: =IF(D14>0,"Valor Pago de Pensão Alimentícia","") -> Valor Pago de Pensão Alimentícia | D17: 9400
C19: Renda Familiar Mensal | D19: =+E20+E21+E23+F20+F21+F23+E22+F22 -> 26000 | E19: =IF(D10="Solteiro(a)","Mulher/Homem","Renda Mulher") -> Renda Mulher | F19: =IF(D10="Solteiro(a)","","Renda Homem") -> Renda Homem
D20: Salario(s) Líquido na conta corrente (média mensal incluindo bonus, etc) | E20: 10000 | F20: 16000
D21: Aluguel de Imóvel(s)
D22: Pensão Recebida
D23: Outros
C25: Disponibilidade (dinheiro e aplicações em conta) | D25: 500000
C27: Patrimônio (excluindo disponibilidades) a valor de mercado hoje aproximadamente | D27: =SUM(E28:F34) -> 1350000 | E27: =IF(D10="Solteiro(a)","Mulher/Homem","Patrimônio Mulher") -> Patrimônio Mulher | F27: =IF(D10="Solteiro(a)","","Patrimônio Homem") -> Patrimônio Homem
C28: Imóvel Residencial | D28: =SUM(E28:F28) -> 1300000 | E28: 650000 | F28: 650000
C29: Escritório Comercial | D29: =SUM(E29:F29) -> 0
C30: Galpão | D30: 0
C31: Fazenda | D31: 0
C32: Outros Imóveis | D32: 0
C33: Automóvel | D33: 50000 | E33: 50000
C34: Outros Bens | D34: 0
C36: Dívida (financiamento/emprestimos) | D36: =SUM(E37:F38) -> 0 | E36: =IF(D10="Solteiro(a)","Mulher/Homem","Dívida Mulher") -> Dívida Mulher | F36: =IF(D10="Solteiro(a)","","Dívida Homem") -> Dívida Homem
C37: Financiamento | D37: =SUM(E37:F37) -> 0
C38: Emprestimos familiares | D38: =SUM(E38:F38) -> 0
C42: Planejamento Familiar
E43: =IF(D10="Casado(a)","Mulher","Mulher/Homem") -> Mulher | F43: =IF(D10="Casado(a)","Homem","") -> Homem
C44: Quandos anos mais deseja trabalhar? | E44: 15 | F44: 10
C46: Quantos filhos pretende ter? | D46: 1 | G46: Inserir um "X" nos itens desejados abaixo | P46: 1
E48: Valores Considerados | F48: PADRÃO SUPERIOR (R$) | H48: MÉDIA (R$) | J48: PADRÃO INFERIOR (R$)
C49: Condomínio / Iptu | D49: =IF($E$11<>"",1,0) -> 1 | E49: =IF(G49="x",F49,IF(I49="x",H49,IF(K49="x",J49,0))) -> 1500 | F49: 2500 | H49: 1500 | I49: x | J49: 1000
C50: Água | D50: =IF($E$11<>"",1,0) -> 1 | E50: 30 | F50: 100 | H50: 30 | I50: x | J50: 15
C51: Energia Elétrica | D51: 1 | E51: 220 | F51: 450 | H51: 220 | I51: x | J51: 110
C52: TV / Internet Cabo | D52: 1 | E52: 250 | F52: 450 | H52: 250 | I52: x | J52: 80
C53: Aluguel | D53: 1 | E53: 2500 | F53: 6000 | H53: 2500 | I53: x | J53: 1100
C54: Reposição de Automóvel (provisão mensal) | D54: =ROUNDUP(D33/50000,0) -> 1 | E54: =IF(G54="x",F54,IF(I54="x",H54,IF(K54="x",J54,0))) -> 0 | F54: 0 | H54: 0 | I54: x | J54: 0
C55: Combustível | D55: =IF(ROUNDUP(D33/50000,0)=0,1,ROUNDUP(D33/50000,0)) -> 1 | E55: =IF(G55="x",F55,IF(I55="x",H55,IF(K55="x",J55,0))) -> 240 | F55: 480 | H55: 240 | I55: x | J55: 120
C56: Compra de bens não duráveis (celular, geladeira, TV, sofá...) | D56: =((IF($D$10="Casado(a)",2,IF($E$11<>"",1,0)))) -> 2 | E56: =IF(G56="x",F56,IF(I56="x",H56,IF(K56="x",J56,0))) -> 250 | F56: 333.3333333 | H56: 250 | I56: x | J56: 83.33333333
C57: Academia de Ginastica / Esporte / Pilates / Fisioterapia | D57: 2 | E57: =IF(G57="x",F57,IF(I57="x",H57,IF(K57="x",J57,0))) -> 400 | F57: 1000 | H57: 400 | I57: x | J57: 200
C58: Terapia / Meditação | D58: 2 | E58: 792 | F58: 1100 | H58: 792 | I58: x | J58: 360
C59: Saúde (remédio, consultas) | D59: 2 | E59: 200 | F59: 600 | H59: 200 | I59: x | J59: 100
C60: Dentista | D60: 2 | E60: 50 | F60: 100 | H60: 50 | I60: x | J60: 20
C61: Jantares com Amigos / Família | D61: 2 | E61: 540 | F61: 800 | H61: 540 | I61: x | J61: 200
C62: Celular | D62: 2 | E62: 140 | F62: 300 | H62: 140 | I62: x | J62: 50
C63: Presentes para ocasiões especiais (Parentes, Amigos) | D63: 2 | E63: 150 | F63: 300 | H63: 150 | I63: x | J63: 100
C64: Empregada/Faxineira | D64: 1 | E64: 1056 | F64: 3872 | H64: 1056 | I64: x | J64: 660
C65: Escola de Linguas (Adulto) | D65: 2 | E65: 1056 | F65: 1584 | H65: 1056 | I65: x | J65: 880
C66: Pós-Graduação / MBA (considerando o casal) | D66: 2 | E66: 1500 | F66: 2500 | H66: 1500 | I66: x | J66: 500
C67: Cinema & Pipoca per capta da família | D67: =($D$46+(IF($D$10="Casado(a)",2,IF($E$11<>"",1,0))+IF(COUNTA(D14)-COUNTA(D17)=0,0,D14))) -> 3 | E67: 40 | F67: 75 | H67: 40 | I67: x | J67: 25
C68: Mensalidade Clube | D68: =($D$46+COUNTA($E$11:$F$11)+IF(COUNTA($D$14)-COUNTA($D$17)>0,$D$14,0)) -> 3 | E68: 120 | F68: 300 | H68: 120 | I68: x | J68: 0
C69: Viagem de Férias | D69: =($D$46+COUNTA($E$11:$F$11)+IF(COUNTA($D$14)-COUNTA($D$17)>0,$D$14,0)) -> 3 | E69: 500 | F69: 666.6666667 | H69: 500 | I69: x | J69: 166.6666667
C70: Farmácia per capta da família | D70: =($D$46+(IF($D$10="Casado(a)",2,IF($E$11<>"",1,0))+IF(COUNTA(D14)-COUNTA(D17)=0,0,D14))) -> 3 | E70: 200 | F70: 350 | H70: 200 | I70: x | J70: 100
C71: Roupa per capta da família | D71: =($D$46+(IF($D$10="Casado(a)",2,IF($E$11<>"",1,0))+IF(COUNTA(D14)-COUNTA(D17)=0,0,D14))) -> 3 | E71: 60 | F71: 120 | H71: 60 | I71: x | J71: 30
C72: Escola de Linguas (Infantil) | D72: =($D$46+IF(COUNTA($D$14)-COUNTA($D$17)>0,$D$14,0)) -> 1 | E72: 1056 | F72: 1584 | H72: 1056 | I72: x | J72: 880
C73: Baba | D73: =IF((D46+COUNTIF(D14,1)+COUNTIF(D14,2)+COUNTIF(D14,3)+COUNTIF(D14,4)+COUNTIF(D14,5)+COUNTIF(D14,6)-COUNTA(D17))>0,1,0) -> 1 | E73: 3840 | F73: 4800 | H73: 3840 | I73: x | J73: 1152
C74: Escola | D74: =($D$46+IF(COUNTA($D$14)-COUNTA($D$17)>0,$D$14,0)) -> 1 | E74: 2000 | F74: 3500 | H74: 2000 | I74: x | J74: 1000
C75: Motorista | D75: =IF((D46+COUNTIF(D14,1)+COUNTIF(D14,2)+COUNTIF(D14,3)+COUNTIF(D14,4)+COUNTIF(D14,5)+COUNTIF(D14,6)-COUNTA(D17))>0,1,0) -> 1 | E75: 3500 | F75: 5500 | H75: 3500 | I75: x | J75: 3500
C76: Transporte Escolar | D76: 1 | E76: 226 | F76: 580 | H76: 226 | I76: x | J76: 150
C77: Material Escolar (mensalizado) | D77: 1 | E77: 40 | F77: 50 | H77: 40 | I77: x | J77: 20
C78: Livros de Escola / Revistas / Etc (mês) | D78: 1 | E78: 50 | F78: 100 | H78: 50 | I78: x | J78: 20
C79: Uniforme Escolar (mensalizado) | D79: 1 | E79: 16.66666667 | F79: 37.5 | H79: 16.66666667 | I79: x | J79: 10
C80: Atividades fora da Escola (passeios) por pessoa mês | D80: 1 | E80: 66.66666667 | F80: 100 | H80: 66.66666667 | I80: x | J80: 25
C81: Alimentação (Supermercado, lanches escola/esporte, etc) | D81: =($D$46+(IF($D$10="Casado(a)",2,IF($E$11<>"",1,0))+IF(COUNTA(D14)-COUNTA(D17)=0,0,D14))) -> 3 | E81: 1000 | F81: 1500 | H81: 1000 | I81: x | J81: 650
C82: Outros (preencher) | D82: =($D$46+(IF($D$10="Casado(a)",2,IF($E$11<>"",1,0))+IF(COUNTA(D13)-COUNTA(D16)=0,0,D13))) -> 3 | I82: x
C83: Outros (preencher) | D83: 3 | I83: x
C84: Outros (preencher) | D84: 3 | I84: x
C85: Outros (preencher) | D85: 3 | E85: 0 | I85: x
C86: Total Mensal Esperado | E86: =SUMPRODUCT(E49:E85,D49:D85) -> 32507.33333
C90: =+D20 -> Salario(s) Líquido na conta corrente (média mensal incluindo bonus, etc)
C92: Renda Atual x Despesa Projetada
C93: Renda | D93: =+D19 -> 26000
C94: Despesa Projetada | D94: =-(E86+D17) -> -41907.33333
C95: Saldo Final (mês) | D95: =SUM(D93:D94) -> -15907.33333
C98: Estime uma Renda Média para Estes Anos Produtivos tomando por base a renda atual | D98: Mulher | E98: Homem
C99: Salario(s) Líquido na conta corrente | D99: =E20 -> 10000 | E99: =F20 -> 16000
C100: Aluguel de Imóvel(s) | D100: =E21 -> 0 | E100: 0
C101: Pensão Recebida | D101: 0 | E101: 0
C102: Outros | D102: 0 | E102: 0
C103: Total | D103: =SUM(D99:D102)*12 -> 120000 | E103: =SUM(E99:E102)*12 -> 192000
I104: Mulher | J104: Homem
C105: Reserva Projetada para o fim dos Anos Produtivos | G105: Expectativa de Vida: | I105: 80 | J105: 80
C106: Renda | D106: =D103*E44+E103*F44 -> 3720000 | G106: Anos de aposentadoria | I106: =+I105-E11-E44 -> 30 | J106: =+J105-F11-F44 -> 30
C108: Pensão Alimentícia | D108: =(IF(F14<>"",-D17/D14*12*(21-F15),0)-IF(G14<>"",D17/D14*12*(21-G15),0)-IF(H14<>"",D17/D14*12*(21-H15),0)-IF(I14<>"",D17/D14*12*(21-I15),0)-IF(J14<>"",D17/D14*12*(21-J15),0)-IF(K14<>"",D17/D14*12*(21-K15),0)) -> -1353600
C109: Despesas projetadas | D109: =-E86*F44*12 -> -3900880 | G109: Disponibilidade Mensal (aposentadoria) | I109: =+D114/SUM(I106:J106)/12 -> -1436.777778 | J109: =+D114/SUM(I106:J106)/12 -> -1436.777778
C110: Reserva de Caixa (R$) Acumulado | D110: =SUM(D106:D109) -> -1534480
G111: não considera INSS
C112: Disponibilidade Financeira | D112: =D25 -> 500000 | G112: Reserva de Caixa Após expectativa de Vida | I112: =+I106*I109*12+J106*J109*12-D114 -> 0
C114: Reserva de Caixa (R$) Após disponibilidade financeira | D114: =+D110+D112 -> -1034480

Sheet Dashboard
L27: -19792 | R27: -37882.66667
L30: -19792 | R30: -37882.66667
C71: Patrimônio Hoje | L71: Fluxo de Caixa Hoje | R71: Fluxo de Caixa Futuro (c/família) | Z71: Patrimônio Futuro
B72: Disponibilidade | C72: =Input!D25 -> 0 | K72: Renda Familiar | L72: =Input!D19 -> 0 | Q72: Renda Familiar | R72: =SUM(Input!D99:E102) -> 0 | W72: Disponibilidade | X72: =Input!D114 -> 0
B73: Patrimônio Imobilizado | C73: =Input!D27 -> 0 | K73: Despesa Familiar | L73: 0 | Q73: Despesa Familiar | R73: 0 | W73: Patrimônio Imobilizado | X73: =Input!Y27 -> 0
B74: Divida / Financiamento | C74: =-Input!D36 -> 0 | K74: Saldo Final | L74: =SUM(L72:L73) -> 0 | Q74: Saldo Final | R74: =SUM(R72:R73) -> 0 | W74: Divida / Financiamento | X74: 0
B75: Total | C75: =SUM(C72:C74) -> 0 | W75: Total | X75: =SUM(X72:X74) -> 0
M77: -28063.33333

Sheet Planilha1
D3: Ferramenta de Planejamento Financeiro
C8: Situação Atual
C10: Estado Civil | D10: Casado(a) | E10: =IF(D10="Solteiro(a)","Mulher/Homem","Idade Mulher") -> Idade Mulher | F10: =IF(D10="Solteiro(a)","","Idade Homem") -> Idade Homem | G10: 1 | H10: 2 | I10: 3 | J10: 4 | K10: 5 | L10: 6 | M10: 6 | N10: 7 | O10: 8 | P10: 9
D11: Idade:
C14: Filhos Hoje | D14: 0 | F14: =IF($D$14>0,"1o Filho","") ->  | G14: =IF($D$14>G10,"2o Filho","") ->  | H14: =IF($D$14>H10,"3o Filho","") ->  | I14: =IF($D$14>J10,"5o Filho","") ->  | J14: =IF($D$14>K10,"6o Filho","") ->  | K14: =IF($D$14>L10,"7o Filho","") -> 
E15: =IF($D$14>0,"Idade:","") -> 
H16: ,
C17: =IF(D14>0,"Valor Pago de Pensão Alimentícia","") -> 
C19: Renda Familiar Mensal | D19: =+E20+E21+E23+F20+F21+F23 -> 0 | E19: =IF(D10="Solteiro(a)","Mulher/Homem","Renda Mulher") -> Renda Mulher | F19: =IF(D10="Solteiro(a)","","Renda Homem") -> Renda Homem
D20: Salario(s) Líquido na conta corrente (média mensal incluindo bonus, etc)
D21: Aluguel de Imóvel(s)
D22: Pensão Recebida
D23: Outros
C25: Disponibilidade (dinheiro e aplicações em conta)
C27: Patrimônio (excluindo disponibilidades) a valor de mercado hoje aproximadamente | D27: =SUM(E28:F34) -> 0 | E27: =IF(D10="Solteiro(a)","Mulher/Homem","Patrimônio Mulher") -> Patrimônio Mulher | F27: =IF(D10="Solteiro(a)","","Patrimônio Homem") -> Patrimônio Homem
C28: Imóvel Residencial | D28: =SUM(E28:F28) -> 0
C29: Escritório Comercial | D29: =SUM(E29:F29) -> 0
C30: Galpão | D30: 0
C31: Fazenda | D31: 0
C32: Outros Imóveis | D32: 0
C33: Automóvel | D33: 0
C34: Outros Bens | D34: 0
C36: Dívida (financiamento/emprestimos) | D36: =SUM(E37:F38) -> 0 | E36: =IF(D10="Solteiro(a)","Mulher/Homem","Dívida Mulher") -> Dívida Mulher | F36: =IF(D10="Solteiro(a)","","Dívida Homem") -> Dívida Homem
C37: Financiamento | D37: =SUM(E37:F37) -> 0
C38: Emprestimos familiares | D38: =SUM(E38:F38) -> 0
C42: Planejamento Familiar
E43: =IF(D10="Casado(a)","Mulher","Mulher/Homem") -> Mulher | F43: =IF(D10="Casado(a)","Homem","") -> Homem
C44: Quandos anos mais deseja trabalhar? | E44: 10 | F44: 5
C46: Quantos filhos pretende ter? | D46: 0 | G46: Inserir um "X" nos itens desejados abaixo
E48: Valores Considerados | F48: PADRÃO SUPERIOR (R$) | H48: MÉDIA (R$) | J48: PADRÃO INFERIOR (R$)
C49: Condomínio / Iptu | D49: =IF($E$11<>"",1,0) -> 0 | E49: =IF(G49="x",F49,IF(I49="x",H49,IF(K49="x",J49,0))) -> 0 | F49: 2500 | H49: 1500 | J49: 1000
C50: Água | D50: =IF($E$11<>"",1,0) -> 0 | E50: 0 | F50: 100 | H50: 30 | J50: 15
C51: Energia Elétrica | D51: 0 | E51: 0 | F51: 450 | H51: 220 | J51: 110
C52: TV / Internet Cabo | D52: 0 | E52: 0 | F52: 450 | H52: 250 | J52: 80
C53: Aluguel | D53: 0 | E53: 0 | F53: 6000 | H53: 2500 | J53: 1100
C54: Reposição de Automóvel (provisão mensal) | D54: =ROUNDUP(D33/50000,0) -> 0 | E54: =IF(G54="x",F54,IF(I54="x",H54,IF(K54="x",J54,0))) -> 0 | F54: =+($D$33*2)/(5*12) -> 0 | H54: =+($D$33*1.5)/(5*12) -> 0 | J54: =+($D$33*1)/(5*12) -> 0
C55: Combustível | D55: =ROUNDUP(D33/50000,0) -> 0 | E55: =IF(G55="x",F55,IF(I55="x",H55,IF(K55="x",J55,0))) -> 0 | F55: =240*2 -> 480 | H55: 240 | J55: 120
C56: Compra de bens não duráveis (celular, geladeira, TV, sofá...) | D56: =((IF($D$10="Casado(a)",2,IF($E$11<>"",1,0)))) -> 2 | E56: =IF(G56="x",F56,IF(I56="x",H56,IF(K56="x",J56,0))) -> 0 | F56: =4000/12 -> 333.3333333 | H56: =3000/12 -> 250 | J56: 83.33333333
C57: Academia de Ginastica / Esporte / Pilates / Fisioterapia | D57: 2 | E57: =IF(G57="x",F57,IF(I57="x",H57,IF(K57="x",J57,0))) -> 0 | F57: 1000 | H57: 400 | J57: 200
C58: Terapia / Meditação | D58: 2 | E58: 0 | F58: =4.4*250 -> 1100 | H58: =4.4*180 -> 792 | J58: =2*180 -> 360
C59: Saúde (remédio, consultas) | D59: 2 | E59: 0 | F59: 600 | H59: 200 | J59: 100
C60: Dentista | D60: 2 | E60: 0 | F60: 100 | H60: 50 | J60: 20
C61: Jantares com Amigos / Família | D61: 2 | E61: 0 | F61: =4*2*100 -> 800 | H61: =4*1.5*90 -> 540 | J61: =4*1*50 -> 200
C62: Celular | D62: 2 | E62: 0 | F62: 300 | H62: 140 | J62: 50
C63: Presentes para ocasiões especiais (Parentes, Amigos) | D63: 2 | E63: 0 | F63: 300 | H63: 150 | J63: 100
C64: Empregada/Faxineira | D64: 0 | E64: =IF(G64="x",F64,IF(I64="x",H64,IF(K64="x",J64,0))) -> 0 | F64: =(110*5*4.4)*1.6 -> 3872 | H64: =(120*2*4.4) -> 1056 | J64: =(75*2*4.4) -> 660
C65: Escola de Linguas (Adulto) | D65: 2 | E65: 0 | F65: =180*2*4.4 -> 1584 | H65: =120*2*4.4 -> 1056 | J65: =100*2*4.4 -> 880
C66: Pós-Graduação / MBA (considerando o casal) | D66: =($D$46+(IF($D$10="Casado(a)",2,IF($E$11<>"",1,0))+IF(COUNTA(D15)-COUNTA(D18)=0,0,D15))) -> 2 | E66: 0 | F66: 2500 | H66: 1500 | J66: 500
C67: Cinema & Pipoca per capta da família | D67: =($D$46+(IF($D$10="Casado(a)",2,IF($E$11<>"",1,0))+IF(COUNTA(D14)-COUNTA(D17)=0,0,D14))) -> 2 | E67: 0 | F67: =3*25 -> 75 | H67: =2*20 -> 40 | J67: =1*25 -> 25
C68: Mensalidade Clube | D68: =($D$46+COUNTA($E$11:$F$11)+IF(COUNTA($D$14)-COUNTA($D$17)>0,$D$14,0)) -> 0 | E68: 0 | F68: 300 | H68: 120 | J68: 0
C69: Viagem de Férias | D69: =($D$46+COUNTA($E$11:$F$11)+IF(COUNTA($D$14)-COUNTA($D$17)>0,$D$14,0)) -> 0 | E69: 0 | F69: =8000/12 -> 666.6666667 | H69: =6000/12 -> 500 | J69: =2000/12 -> 166.6666667
C70: Farmácia per capta da família | D70: =($D$46+(IF($D$10="Casado(a)",2,IF($E$11<>"",1,0))+IF(COUNTA(D14)-COUNTA(D17)=0,0,D14))) -> 2 | E70: 0 | F70: 350 | H70: 200 | J70: 100
C71: Roupa per capta da família | D71: =($D$46+(IF($D$10="Casado(a)",2,IF($E$11<>"",1,0))+IF(COUNTA(D14)-COUNTA(D17)=0,0,D14))) -> 2 | E71: 0 | F71: 120 | H71: 60 | J71: 30
C72: Escola de Linguas (Infantil) | D72: =($D$46+IF(COUNTA($D$14)-COUNTA($D$17)>0,$D$14,0)) -> 0 | E72: 0 | F72: =180*2*4.4 -> 1584 | H72: =120*2*4.4 -> 1056 | J72: =100*2*4.4 -> 880
C73: Baba | D73: =IF((D46+COUNTIF(D14,1)+COUNTIF(D14,2)+COUNTIF(D14,3)+COUNTIF(D14,4)+COUNTIF(D14,5)+COUNTIF(D14,6)-COUNTA(D17))>0,1,0) -> 0 | E73: 0 | F73: =(150*5*4)*1.6 -> 4800 | H73: =(120*5*4)*1.6 -> 3840 | J73: =(90*2*4)*1.6 -> 1152
C74: Escola | D74: =($D$46+IF(COUNTA($D$14)-COUNTA($D$17)>0,$D$14,0)) -> 0 | E74: =IF(G74="x",F74,IF(I74="x",H74,IF(K74="x",J74,0))) -> 0 | F74: 3500 | H74: 2000 | J74: 1000
C75: Motorista | D75: =IF((D46+COUNTIF(D14,1)+COUNTIF(D14,2)+COUNTIF(D14,3)+COUNTIF(D14,4)+COUNTIF(D14,5)+COUNTIF(D14,6)-COUNTA(D17))>0,1,0) -> 0 | E75: 0 | F75: 5500 | H75: 3500 | J75: 3500
C76: Transporte Escolar | D76: 0 | E76: 0 | F76: 580 | H76: 226 | J76: 150
C77: Material Escolar (mensalizado) | D77: 0 | E77: 0 | F77: 50 | H77: 40 | J77: 20
C78: Livros de Escola / Revistas / Etc (mês) | D78: 0 | E78: 0 | F78: 100 | H78: 50 | J78: 20
C79: Uniforme Escolar (mensalizado) | D79: 0 | E79: 0 | F79: 37.5 | H79: =200/12 -> 16.66666667 | J79: 10
C80: Atividades fora da Escola (passeios) por pessoa mês | D80: 0 | E80: 0 | F80: =1200/12 -> 100 | H80: =800/12 -> 66.66666667 | J80: =300/12 -> 25
C81: Alimentação (Supermercado, lanches escola/esporte, etc) | D81: =($D$46+(IF($D$10="Casado(a)",2,IF($E$11<>"",1,0))+IF(COUNTA(D14)-COUNTA(D17)=0,0,D14))) -> 2 | E81: 0 | F81: 1500 | H81: 1000 | J81: 650
C82: Outros (preencher) | D82: =($D$46+(IF($D$10="Casado(a)",2,IF($E$11<>"",1,0))+IF(COUNTA(D13)-COUNTA(D16)=0,0,D13))) -> 2
C83: Outros (preencher) | D83: 2
C84: Outros (preencher) | D84: 2
C85: Outros (preencher) | D85: =($D$46+(IF($D$10="Casado(a)",2,IF($E$11<>"",1,0))+IF(COUNTA(D16)-COUNTA(D19)=0,0,D16))) -> 2 | E85: 0
C86: Total Mensal Esperado | E86: =SUMPRODUCT(E49:E85,D49:D85) -> 0
C90: =+D20 -> Salario(s) Líquido na conta corrente (média mensal incluindo bonus, etc)
C92: Renda Atual x Despesa Projetada
C93: Renda | D93: =+D19 -> 0
C94: Despesa Projetada | D94: =-(E86+D17) -> 0
C95: Saldo Final (mês) | D95: =+D93+D94 -> 0
C98: Estime uma Renda Média para Estes Anos Produtivos tomando por base a renda atual | D98: =IF($D$10="Solteiro(a)","Mulher/Homem","Mulher") -> Mulher | E98: =IF(D10="Solteiro(a)","","Homem") -> Homem
C99: Salario(s) Líquido na conta corrente | D99: =E20 -> 0 | E99: =F20 -> 0
C100: Aluguel de Imóvel(s) | D100: =E21 -> 0 | E100: 0
C101: Pensão Recebida | D101: =E20 -> 0 | E101: =F20 -> 0
C102: Outros | D102: =E21 -> 0 | E102: 0
C103: Total | D103: 0 | E103: 0
C105: Reserva Projetada para o fim dos Anos Produtivos
C106: Renda | D106: =SUM(D103:E103) -> 0
C107: Disponibilidade (aplicação - divida) | D107: =+D25-D36 -> 0
C108: Pensão Alimentícia | D108: =(IF(F14<>"",-D17/D14*12*(21-F15),0)-IF(G14<>"",D17/D14*12*(21-G15),0)-IF(H14<>"",D17/D14*12*(21-H15),0)-IF(I14<>"",D17/D14*12*(21-I15),0)-IF(J14<>"",D17/D14*12*(21-J15),0)-IF(K14<>"",D17/D14*12*(21-K15),0)) -> 0
C109: Despesas projetadas | D109: =-E86*F44*12 -> 0
C110: Reserva de Caixa (R$) Acumulada | D110: =SUM(D106:D109) -> 0
C112: Disponibilidade Financeira | D112: =D25 -> 0
C114: Patrimônio da Família ao fim dos anos Produtivos | D114: =+D110+D27 -> 0

Sheet Input (2) (hidden)
D3: Ferramenta de Planejamento Financeiro
C8: Situação Atual
C10: Estado Civil | D10: Casado(a) | E10: =IF(D10="Solteiro(a)","Mulher/Homem","Mulher") -> Mulher | F10: =IF(D10="Solteiro(a)","","Homem") -> Homem | G10: 1 | H10: 2 | I10: 3 | J10: 4 | K10: 5 | L10: 6 | M10: 6 | N10: 7 | O10: 8 | P10: 9
D11: Idade: | E11: 35 | F11: 40
C14: Filhos | D14: 3
C15: =IF(D14>0,"Valor Pago de Pensão Alimentícia","") -> Valor Pago de Pensão Alimentícia | D15: 9500
C17: =IF(D14>0,"Valores gastos por filho fora pensão","") -> Valores gastos por filho fora pensão | E17: =IF($D$14>0,"1o Filho","") -> 1o Filho | F17: =IF($D$14>G10,"2o Filho","") -> 2o Filho | G17: =IF($D$14>H10,"3o Filho","") -> 3o Filho | H17: =IF($D$14>I10,"4o Filho","") ->  | I17: =IF($D$14>J10,"5o Filho","") ->  | J17: =IF($D$14>K10,"6o Filho","") ->  | K17: =IF($D$14>L10,"7o Filho","") -> 
D18: =IF($D$14>0,"Idade:","") -> Idade:
D19: =IF($D$14>0,"Gasto Escolar:","") -> Gasto Escolar:
D20: =IF($D$14>0,"Gasto Atividades Extra Escolares:","") -> Gasto Atividades Extra Escolares:
D21: =IF($D$14>0,"Média de Outros Gastos Diversos atribuiveis individualmente:","") -> Média de Outros Gastos Diversos atribuiveis individualmente:
C23: Renda Familiar Mensal | D23: =+E24+E25+E27+F24+F25+F27 -> 29000 | E23: =IF(D10="Solteiro(a)","Mulher/Homem","Mulher") -> Mulher | F23: =IF(D10="Solteiro(a)","","Homem") -> Homem
D24: Salario(s) Líquido na conta corrente (média mensal incluindo bonus, etc) | E24: 8500 | F24: 9000
D25: Aluguel de Imóvel(s) | F25: 5500
D26: Pensão Recebida | F26: 0
D27: Outros | F27: 6000
C29: Disponibilidade (dinheiro e aplicações em conta com liquidez inferior a 12 meses) | D29: 1200000
C31: Patrimônio (excluindo disponibilidades) a valor de mercado hoje aproximadamente | D31: =SUM(E32:F38) -> 5345000 | E31: =IF(D10="Solteiro(a)","Mulher/Homem","Mulher") -> Mulher | F31: =IF(D10="Solteiro(a)","","Homem") -> Homem
C32: Imóvel Residencial | D32: =SUM(E32:F32) -> 1300000 | E32: 650000 | F32: 650000
C33: Escritório Comercial | D33: =SUM(E33:F33) -> 1350000 | F33: 1350000
C34: Galpão | D34: 0 | F34: 0
C35: Fazenda | D35: 0 | F35: 0
C36: Outros Imóveis | D36: 2650000 | F36: =800000+1850000 -> 2650000
C37: Automóvel | D37: 45000 | E37: 45000
C38: Outros Bens | D38: 0
C40: Dívida (financiamento/emprestimos) | D40: =SUM(E41:F42) -> 350000 | E40: =IF(D10="Solteiro(a)","Mulher/Homem","Mulher") -> Mulher | F40: =IF(D10="Solteiro(a)","","Homem") -> Homem
C41: Financiamento | D41: =SUM(E41:F41) -> 0
C42: Emprestimos familiares | D42: =SUM(E42:F42) -> 350000 | F42: 350000
C46: Planejamento Familiar
E47: =IF(D10="Casado(a)","Mulher","") -> Mulher | F47: =IF(D10="Casado(a)","Homem","") -> Homem
C48: Quando tempo mais deseja trabalhar? | E48: 5 | F48: 10
C50: Quanto deseja ter de recursos por mês em sua aposentadoria? (a valor atual) | D50: 15000
C52: Quantos filhos pretende ter? | D52: 1
D54: Pessoas Consideradas | E54: Valores Considerados | F54: PADRÃO SUPERIOR (R$) | H54: MÉDIA (R$) | J54: PADRÃO INFERIOR (R$)
C55: Condomínio / Iptu | D55: 1 | E55: =IF(G55="x",F55,IF(I55="x",H55,IF(K55="x",J55,0))) -> 1500 | F55: 2500 | H55: 1500 | I55: x | J55: 1000
C56: Água | D56: 1 | E56: 100 | F56: 100 | G56: x | H56: 30 | J56: 15
C57: Energia Elétrica | D57: 1 | E57: 220 | F57: 450 | H57: 220 | I57: x | J57: 110
C58: TV / Internet Cabo | D58: 1 | E58: 250 | F58: 450 | H58: 250 | I58: x | J58: 80
C59: Aluguel | D59: 1 | E59: 0 | F59: 6000 | H59: 2500 | J59: 1100
C60: Baba | D60: =IF((D52+COUNTA(E18:K18))>0,1,0) -> 1 | E60: =IF(G60="x",F60,IF(I60="x",H60,IF(K60="x",J60,0))) -> 3840 | F60: =(150*5*4)*1.6 -> 4800 | H60: =(120*5*4)*1.6 -> 3840 | I60: x | J60: =(90*2*4)*1.6 -> 1152
C61: Empregada/Faxineira | D61: 1 | E61: =IF(G61="x",F61,IF(I61="x",H61,IF(K61="x",J61,0))) -> 1056 | F61: =(110*5*4.4)*1.6 -> 3872 | H61: =(120*2*4.4) -> 1056 | I61: X | J61: =(75*2*4.4) -> 660
C62: Escola | D62: =($D$52+COUNTA($E$18:$K$18)) -> 1 | E62: 2000 | F62: 3500 | H62: 2000 | I62: X | J62: 1000
C63: Combustível | D63: =ROUNDUP(D37/50000,0) -> 1 | E63: 240 | F63: =240*2 -> 480 | H63: 240 | I63: X | J63: 120
C64: Motorista | D64: 1 | E64: 0 | F64: 5500 | H64: 3500 | J64: 3500
C65: Mensalidade Clube | D65: =($D$52+COUNTA($E$18:$K$18)) -> 1 | E65: 300 | F65: 300 | G65: X | H65: 120 | J65: 0
C66: Transporte Escolar | D66: 1 | E66: 226 | F66: 580 | H66: 226 | I66: X | J66: 150
C67: Material Escolar (mensalizado) | D67: 1 | E67: 40 | F67: 50 | H67: 40 | I67: X | J67: 20
C68: Livros de Escola / Revistas / Etc (mês) | D68: 1 | E68: 50 | F68: 100 | H68: 50 | I68: X | J68: 20
C69: Uniforme Escolar (mensalizado) | D69: 1 | E69: 16.66666667 | F69: 37.5 | H69: =200/12 -> 16.66666667 | I69: X | J69: 10
C70: Atividades fora da Escola (passeios) por pessoa mês | D70: 1 | E70: 66.66666667 | F70: =1200/12 -> 100 | H70: =800/12 -> 66.66666667 | I70: X | J70: =300/12 -> 25
C71: Escola de Linguas | D71: 1 | E71: 1056 | F71: =180*2*4.4 -> 1584 | H71: =120*2*4.4 -> 1056 | I71: X | J71: =100*2*4.4 -> 880
C72: Reposição de Automóvel (provisão mensal) | D72: =ROUNDUP(D37/50000,0) -> 1 | E72: 1125 | F72: =+($D$37*2)/(5*12) -> 1500 | H72: =+($D$37*1.5)/(5*12) -> 1125 | I72: X | J72: =+($D$37*1)/(5*12) -> 750
C73: Viagem de Férias | D73: =($D$52+(IF($D$10="Casado(a)",2,1))+COUNTA($E$18:$K$18)) -> 3 | E73: 666.6666667 | F73: =8000/12 -> 666.6666667 | G73: x | H73: =6000/12 -> 500 | J73: =2000/12 -> 166.6666667
C74: Compra de bens não duráveis | D74: 3 | E74: 250 | F74: =4000/12 -> 333.3333333 | H74: =3000/12 -> 250 | I74: X | J74: 83.33333333
C75: Alimentação (Supermercado, lanches escola/esporte, etc) | D75: 3 | E75: 1000 | F75: 1500 | H75: 1000 | I75: X | J75: 650
C76: Farmácia per capta da família | D76: 3 | E76: 200 | F76: 350 | H76: 200 | I76: X | J76: 100
C77: Cinema & Pipoca per capta da família | D77: 3 | E77: 40 | F77: =3*25 -> 75 | H77: =2*20 -> 40 | I77: X | J77: =1*25 -> 25
C78: Roupa per capta da família | D78: 3 | E78: 120 | F78: 120 | G78: X | H78: 60 | J78: 30
C79: Total Mensal Esperado | E79: =SUMPRODUCT(E55:E78,D55:D78) -> 18916.33333
C83: Reultados
C85: Renda Atual x Despesa Projetada
C86: Renda | D86: =+D23 -> 29000
C87: Despesa Projetada | D87: =-(E79+D15) -> -28416.33333
C88: Saldo Final (mês) | D88: =+D86+D87 -> 583.6666667
C91: Renda Projetada para Estes Anos Produtivos | D91: =IF($D$10="Solteiro(a)","Mulher/Homem","Mulher") -> Mulher | E91: =IF(D10="Solteiro(a)","","Homem") -> Homem
C92: Salario(s) Líquido na conta corrente | D92: 8500 | E92: 9000
C93: Aluguel de Imóvel(s) | E93: 9000
C94: Pensão Recebida | E94: 0
C95: Outros
C96: Total | D96: =SUM(D92:D95)*E48*12 -> 510000 | E96: =SUM(E92:E95)*F48*12 -> 2160000
C98: Reserva Projetada para o fim dos Anos Produtivos
C99: Renda | D99: =SUM(D96:E96) -> 2670000
C100: Disponibilidade (aplicação - divida) | D100: =+D29-D40 -> 850000
C101: Pensão Alimentícia | D101: =-D15*F48*12 -> -1140000
C102: Despesas projetadas | D102: =-E79*F48*12 -> -2269960
C103: Reserva de Caixa (R$) Acumulada | D103: =SUM(D99:D102) -> 110040
C105: Patrimônio da Família ao fim dos anos Produtivos | D105: =+D103+D31 -> 5455040
